[Event "December 5 Late 2023"]
[Site "https://www.chess.com"]
[Date "2023.12.05"]
[Round "6"]
[White "Sari, Yasin"]
[Black "Reprintsev, Alexander"]
[Result "1-0"]
[Board "105"]
[TimeControl "180+1"]
[WhiteFideId "6320902"]
[BlackFideId "14100541"]
[WhiteElo "2371"]
[BlackElo "2496"]
[WhiteTeam "TUR"]
[BlackTeam "UKR"]
[WhiteClock "0:00:22"]
[BlackClock "0:00:34"]

1. d4 {[%clk 0:03:00]}  d5 {[%clk 0:02:45]} 2. Bf4 {[%clk 0:03:00]}  Nf6 {[%clk 0:02:44]} 3. e3 {[%clk 0:03:00]}  c5 {[%clk 0:02:44]} 4. c3 {[%clk 0:03:00]}  Qb6 {[%clk 0:02:44]} 5. Qb3 {[%clk 0:02:56]}  c4 {[%clk 0:02:44]} 6. Qc2 {[%clk 0:02:56]}  g6 {[%clk 0:02:44]} 7. Nd2 {[%clk 0:02:44]}  Bf5 {[%clk 0:02:43]} 8. Qc1 {[%clk 0:02:44]}  Nc6 {[%clk 0:02:42]} 9. f3 {[%clk 0:02:34]}  Bg7 {[%clk 0:02:39]} 10. g4 {[%clk 0:02:34]}  Be6 {[%clk 0:02:36]} 11. Bg2 {[%clk 0:02:30]}  O-O {[%clk 0:02:35]} 12. Ne2 {[%clk 0:02:29]}  h5 {[%clk 0:02:32]} 13. h3 {[%clk 0:02:20]}  Rac8 {[%clk 0:02:30]} 14. Ng3 {[%clk 0:02:14]}  h4 {[%clk 0:02:27]} 15. Ne2 {[%clk 0:02:14]}  a5 {[%clk 0:02:21]} 16. Bg5 {[%clk 0:02:10]}  Bd7 {[%clk 0:02:12]} 17. f4 {[%clk 0:01:58]}  Nh7 {[%clk 0:02:07]} 18. Bxh4 {[%clk 0:01:58]}  g5 {[%clk 0:02:05]} 19. Bf2 {[%clk 0:01:38]}  gxf4 {[%clk 0:02:03]} 20. Nxf4 {[%clk 0:01:32]}  e5 {[%clk 0:02:00]} 21. Nxd5 {[%clk 0:01:30]}  Qa6 {[%clk 0:01:57]} 22. O-O {[%clk 0:01:19]}  b5 {[%clk 0:01:52]} 23. Ne4 {[%clk 0:01:17]}  Be6 {[%clk 0:01:38]} 24. Nc5 {[%clk 0:01:14]}  Qa7 {[%clk 0:01:38]} 25. Qc2 {[%clk 0:01:04]}  Rcd8 {[%clk 0:01:18]} 26. Nf4 {[%clk 0:00:47]}  Nxd4 {[%clk 0:01:12]} 27. exd4 {[%clk 0:00:44]}  exf4 {[%clk 0:01:12]} 28. Bh4 {[%clk 0:00:40]}  Rc8 {[%clk 0:01:10]} 29. Rxf4 {[%clk 0:00:37]}  b4 {[%clk 0:01:01]} 30. Raf1 {[%clk 0:00:36]}  Rxc5 {[%clk 0:01:00]} 31. dxc5 {[%clk 0:00:36]}  Qxc5+ {[%clk 0:01:01]} 32. Bf2 {[%clk 0:00:37]}  Qc7 {[%clk 0:00:58]} 33. Bd4 {[%clk 0:00:35]}  Bxd4+ {[%clk 0:00:51]} 34. cxd4 {[%clk 0:00:36]}  Rd8 {[%clk 0:00:47]} 35. d5 {[%clk 0:00:30]}  Bxd5 {[%clk 0:00:47]} 36. Bxd5 {[%clk 0:00:29]}  Rxd5 {[%clk 0:00:47]} 37. Rxf7 {[%clk 0:00:29]}  Qc5+ {[%clk 0:00:46]} 38. Kh1 {[%clk 0:00:28]}  Rd3 {[%clk 0:00:46]} 39. Qg2 {[%clk 0:00:24]}  Ng5 {[%clk 0:00:34]} 40. Qa8+ {[%clk 0:00:22]} 1-0

[Event "December 5 Late 2023"]
[Site "https://www.chess.com"]
[Date "2023.12.05"]
[Round "6"]
[White "Ladan, Nicholas"]
[Black "Kostiukov, Alexandr"]
[Result "1-0"]
[Board "106"]
[TimeControl "180+1"]
[WhiteFideId "30918855"]
[BlackFideId "14108100"]
[WhiteElo "2473"]
[BlackElo "2368"]
[WhiteTeam "USA"]
[BlackTeam "UKR"]
[WhiteClock "0:00:37"]
[BlackClock "0:00:51"]

1. e4 {[%clk 0:03:00]}  c5 {[%clk 0:02:59]} 2. Nc3 {[%clk 0:02:59]}  g6 {[%clk 0:02:59]} 3. Bc4 {[%clk 0:02:59]}  Bg7 {[%clk 0:02:58]} 4. d3 {[%clk 0:02:59]}  Nc6 {[%clk 0:02:57]} 5. a3 {[%clk 0:03:00]}  e6 {[%clk 0:02:58]} 6. Nge2 {[%clk 0:02:58]}  Nge7 {[%clk 0:02:58]} 7. O-O {[%clk 0:02:58]}  O-O {[%clk 0:02:58]} 8. Ba2 {[%clk 0:02:57]}  d5 {[%clk 0:02:56]} 9. f3 {[%clk 0:02:49]}  a6 {[%clk 0:02:49]} 10. Qe1 {[%clk 0:02:49]}  Nd4 {[%clk 0:02:44]} 11. Nxd4 {[%clk 0:02:45]}  cxd4 {[%clk 0:02:45]} 12. Nd1 {[%clk 0:02:37]}  Qc7 {[%clk 0:02:43]} 13. Rf2 {[%clk 0:02:35]}  b5 {[%clk 0:02:33]} 14. Re2 {[%clk 0:02:34]}  Bb7 {[%clk 0:02:28]} 15. Nf2 {[%clk 0:02:30]}  Rac8 {[%clk 0:02:26]} 16. Bg5 {[%clk 0:02:23]}  f6 {[%clk 0:02:14]} 17. Bh4 {[%clk 0:02:21]}  e5 {[%clk 0:02:12]} 18. Rc1 {[%clk 0:02:13]}  Bh6 {[%clk 0:02:10]} 19. Rd1 {[%clk 0:02:11]}  Be3 {[%clk 0:02:09]} 20. Kh1 {[%clk 0:02:10]}  g5 {[%clk 0:02:06]} 21. Bg3 {[%clk 0:02:10]}  h5 {[%clk 0:02:07]} 22. Nh3 {[%clk 0:02:00]}  Kg7 {[%clk 0:02:03]} 23. Bf2 {[%clk 0:02:00]}  Bxf2 {[%clk 0:01:59]} 24. Nxf2 {[%clk 0:02:00]}  Rcd8 {[%clk 0:01:58]} 25. Rc1 {[%clk 0:01:45]}  Ng6 {[%clk 0:01:57]} 26. g3 {[%clk 0:01:43]}  Qd6 {[%clk 0:01:54]} 27. Kg2 {[%clk 0:01:41]}  Rh8 {[%clk 0:01:54]} 28. Qb4 {[%clk 0:01:36]}  Qb6 {[%clk 0:01:41]} 29. a4 {[%clk 0:01:27]}  Qd6 {[%clk 0:01:35]} 30. Qxd6 {[%clk 0:01:24]}  Rxd6 {[%clk 0:01:36]} 31. axb5 {[%clk 0:01:22]}  axb5 {[%clk 0:01:35]} 32. Bxd5 {[%clk 0:01:09]}  Bxd5 {[%clk 0:01:34]} 33. exd5 {[%clk 0:01:09]}  f5 {[%clk 0:01:23]} 34. Ra1 {[%clk 0:01:06]}  Rf8 {[%clk 0:01:19]} 35. c4 {[%clk 0:01:00]}  dxc3 {[%clk 0:01:18]} 36. bxc3 {[%clk 0:01:00]}  Rxd5 {[%clk 0:01:18]} 37. c4 {[%clk 0:00:55]}  Rc5 {[%clk 0:01:14]} 38. Ra5 {[%clk 0:00:54]}  Rfc8 {[%clk 0:01:05]} 39. Rxb5 {[%clk 0:00:51]}  Rxb5 {[%clk 0:01:05]} 40. cxb5 {[%clk 0:00:52]}  Rb8 {[%clk 0:01:03]} 41. Rb2 {[%clk 0:00:53]}  Rb6 {[%clk 0:01:02]} 42. Nd1 {[%clk 0:00:51]}  Kf6 {[%clk 0:01:02]} 43. Nc3 {[%clk 0:00:50]}  Ke6 {[%clk 0:01:02]} 44. Na4 {[%clk 0:00:50]}  Rb8 {[%clk 0:01:02]} 45. b6 {[%clk 0:00:48]}  Kd5 {[%clk 0:01:02]} 46. b7 {[%clk 0:00:41]}  Ne7 {[%clk 0:01:01]} 47. Nb6+ {[%clk 0:00:37]}  Kc6 {[%clk 0:00:59]} 48. Nc4 {[%clk 0:00:37]}  Rxb7 {[%clk 0:00:51]} 49. Na5+ {[%clk 0:00:37]} 1-0

[Event "December 5 Late 2023"]
[Site "https://www.chess.com"]
[Date "2023.12.05"]
[Round "6"]
[White "Shton, Roman"]
[Black "Mazzilli, Piero"]
[Result "1/2-1/2"]
[Board "111"]
[TimeControl "180+1"]
[WhiteFideId "14137461"]
[BlackFideId "807087"]
[WhiteElo "2457"]
[BlackElo "2324"]
[WhiteTeam "UKR"]
[BlackTeam "ITA"]
[WhiteClock "0:00:05"]
[BlackClock "0:00:03"]

1. d4 {[%clk 0:03:00]}  d5 {[%clk 0:02:59]} 2. Nf3 {[%clk 0:03:00]}  c6 {[%clk 0:02:59]} 3. g3 {[%clk 0:03:01]}  Bf5 {[%clk 0:02:55]} 4. Bg2 {[%clk 0:03:02]}  e6 {[%clk 0:02:55]} 5. c4 {[%clk 0:03:03]}  h6 {[%clk 0:02:53]} 6. Nc3 {[%clk 0:03:04]}  Nf6 {[%clk 0:02:53]} 7. Qb3 {[%clk 0:03:04]}  Qb6 {[%clk 0:02:52]} 8. c5 {[%clk 0:03:04]}  Qxb3 {[%clk 0:02:52]} 9. axb3 {[%clk 0:03:05]}  Nbd7 {[%clk 0:01:46]} 10. b4 {[%clk 0:03:04]}  Be7 {[%clk 0:01:29]} 11. b5 {[%clk 0:02:59]}  O-O {[%clk 0:01:29]} 12. bxc6 {[%clk 0:02:55]}  bxc6 {[%clk 0:01:30]} 13. Bf4 {[%clk 0:02:50]}  g5 {[%clk 0:01:23]} 14. Be5 {[%clk 0:02:46]}  g4 {[%clk 0:01:16]} 15. Nh4 {[%clk 0:02:39]}  Nxe5 {[%clk 0:01:12]} 16. Nxf5 {[%clk 0:02:39]}  exf5 {[%clk 0:01:12]} 17. dxe5 {[%clk 0:02:39]}  Nd7 {[%clk 0:01:12]} 18. h3 {[%clk 0:02:23]}  Nxe5 {[%clk 0:00:58]} 19. hxg4 {[%clk 0:02:22]}  Nxg4 {[%clk 0:00:50]} 20. Ra6 {[%clk 0:02:20]}  Bxc5 {[%clk 0:00:46]} 21. f3 {[%clk 0:02:16]}  Ne3 {[%clk 0:00:41]} 22. Bh3 {[%clk 0:02:07]}  Rab8 {[%clk 0:00:11]} 23. Na4 {[%clk 0:01:58]}  Bd4 {[%clk 0:00:09]} 24. Rxc6 {[%clk 0:01:56]}  Bxb2 {[%clk 0:00:08]} 25. Rxh6 {[%clk 0:01:40]}  Kg7 {[%clk 0:00:07]} 26. Bf1 {[%clk 0:01:33]}  Nxf1 {[%clk 0:00:06]} 27. Kxf1 {[%clk 0:01:34]}  Bd4 {[%clk 0:00:05]} 28. Rh7+ {[%clk 0:01:27]}  Kf6 {[%clk 0:00:05]} 29. R7h6+ {[%clk 0:01:25]}  Ke7 {[%clk 0:00:05]} 30. Kg2 {[%clk 0:01:21]}  Rh8 {[%clk 0:00:06]} 31. Rxh8 {[%clk 0:01:15]}  Rxh8 {[%clk 0:00:07]} 32. Rd1 {[%clk 0:01:15]}  Bf6 {[%clk 0:00:06]} 33. Rxd5 {[%clk 0:01:15]}  Re8 {[%clk 0:00:05]} 34. Rxf5 {[%clk 0:01:13]}  Ke6 {[%clk 0:00:04]} 35. Ra5 {[%clk 0:01:12]}  Re7 {[%clk 0:00:04]} 36. e4 {[%clk 0:01:10]}  Bd4 {[%clk 0:00:02]} 37. f4 {[%clk 0:01:06]}  Kd7 {[%clk 0:00:03]} 38. Kf3 {[%clk 0:01:06]}  Kc7 {[%clk 0:00:03]} 39. Rd5 {[%clk 0:01:04]}  Bb6 {[%clk 0:00:03]} 40. Nc3 {[%clk 0:01:04]}  Kc6 {[%clk 0:00:03]} 41. Rf5 {[%clk 0:01:02]}  a5 {[%clk 0:00:03]} 42. g4 {[%clk 0:00:55]}  Kb7 {[%clk 0:00:01]} 43. g5 {[%clk 0:00:54]}  Rc7 {[%clk 0:00:02]} 44. Nd5 {[%clk 0:00:51]}  Rd7 {[%clk 0:00:02]} 45. Rf6 {[%clk 0:00:48]}  Bc5 {[%clk 0:00:02]} 46. g6 {[%clk 0:00:44]}  fxg6 {[%clk 0:00:02]} 47. Rxg6 {[%clk 0:00:45]}  a4 {[%clk 0:00:02]} 48. f5 {[%clk 0:00:34]}  a3 {[%clk 0:00:03]} 49. Rg2 {[%clk 0:00:30]}  Bd4 {[%clk 0:00:02]} 50. f6 {[%clk 0:00:19]}  Bb2 {[%clk 0:00:02]} 51. Kf4 {[%clk 0:00:19]}  Kc6 {[%clk 0:00:03]} 52. Nb4+ {[%clk 0:00:13]}  Kb5 {[%clk 0:00:03]} 53. Na2 {[%clk 0:00:13]}  Bxf6 {[%clk 0:00:03]} 54. e5 {[%clk 0:00:12]}  Bxe5+ {[%clk 0:00:03]} 55. Kxe5 {[%clk 0:00:13]}  Ra7 {[%clk 0:00:03]} 56. Rg3 {[%clk 0:00:11]}  Ka4 {[%clk 0:00:03]} 57. Kd4 {[%clk 0:00:10]}  Rd7+ {[%clk 0:00:03]} 58. Kc5 {[%clk 0:00:10]}  Rc7+ {[%clk 0:00:04]} 59. Kb6 {[%clk 0:00:10]}  Rc2 {[%clk 0:00:04]} 60. Nc3+ {[%clk 0:00:09]}  Kb4 {[%clk 0:00:03]} 61. Nd5+ {[%clk 0:00:07]}  Ka4 {[%clk 0:00:03]} 62. Nc3+ {[%clk 0:00:07]}  Kb4 {[%clk 0:00:03]} 63. Nd5+ {[%clk 0:00:07]}  Ka4 {[%clk 0:00:03]} 64. Nc3+ {[%clk 0:00:05]} 1/2-1/2

[Event "December 5 Late 2023"]
[Site "https://www.chess.com"]
[Date "2023.12.05"]
[Round "6"]
[White "Mizzi, Jack"]
[Black "Rian, Kapriaga"]
[Result "0-1"]
[Board "113"]
[TimeControl "180+1"]
[WhiteFideId "5602521"]
[BlackFideId "7103263"]
[WhiteElo "2455"]
[BlackElo "2318"]
[WhiteTeam "MLT"]
[BlackTeam "INA"]
[WhiteClock "0:00:03"]
[BlackClock "0:00:02"]

1. d4 {[%clk 0:02:56]}  Nf6 {[%clk 0:02:58]} 2. c4 {[%clk 0:02:57]}  e6 {[%clk 0:02:57]} 3. g3 {[%clk 0:02:57]}  d5 {[%clk 0:02:57]} 4. Bg2 {[%clk 0:02:57]}  Be7 {[%clk 0:02:56]} 5. Nf3 {[%clk 0:02:58]}  O-O {[%clk 0:02:52]} 6. O-O {[%clk 0:02:58]}  dxc4 {[%clk 0:02:51]} 7. Ne5 {[%clk 0:02:57]}  Nc6 {[%clk 0:02:40]} 8. Bxc6 {[%clk 0:02:55]}  bxc6 {[%clk 0:02:39]} 9. Nxc6 {[%clk 0:02:56]}  Qe8 {[%clk 0:02:40]} 10. Nxe7+ {[%clk 0:02:56]}  Qxe7 {[%clk 0:02:41]} 11. Qc2 {[%clk 0:02:56]}  e5 {[%clk 0:02:39]} 12. dxe5 {[%clk 0:02:55]}  Qxe5 {[%clk 0:02:39]} 13. Bf4 {[%clk 0:02:56]}  Qh5 {[%clk 0:02:35]} 14. Qxc4 {[%clk 0:02:55]}  Bh3 {[%clk 0:02:25]} 15. Rd1 {[%clk 0:02:44]}  Be6 {[%clk 0:02:10]} 16. Qd3 {[%clk 0:02:28]}  Ng4 {[%clk 0:02:04]} 17. h4 {[%clk 0:02:27]}  h6 {[%clk 0:02:03]} 18. f3 {[%clk 0:02:18]}  Nf6 {[%clk 0:02:00]} 19. Bxc7 {[%clk 0:02:05]}  g5 {[%clk 0:01:38]} 20. Qd4 {[%clk 0:02:01]}  Nd5 {[%clk 0:01:32]} 21. Bd6 {[%clk 0:01:47]}  Rfd8 {[%clk 0:01:30]} 22. Ba3 {[%clk 0:01:35]}  Rd7 {[%clk 0:01:29]} 23. Qe4 {[%clk 0:01:16]}  Rad8 {[%clk 0:01:25]} 24. Nd2 {[%clk 0:01:03]}  Nf6 {[%clk 0:01:21]} 25. Qe5 {[%clk 0:00:48]}  Rxd2 {[%clk 0:01:12]} 26. Rxd2 {[%clk 0:00:47]}  Rxd2 {[%clk 0:01:12]} 27. Qxf6 {[%clk 0:00:38]}  gxh4 {[%clk 0:01:00]} 28. Qxh4 {[%clk 0:00:24]}  Qe5 {[%clk 0:00:47]} 29. Re1 {[%clk 0:00:14]}  Qe3+ {[%clk 0:00:42]} 30. Kg2 {[%clk 0:00:07]}  Rxe2+ {[%clk 0:00:38]} 31. Rxe2 {[%clk 0:00:07]}  Qxe2+ {[%clk 0:00:38]} 32. Kg1 {[%clk 0:00:07]}  Qe1+ {[%clk 0:00:31]} 33. Kg2 {[%clk 0:00:07]}  Qe2+ {[%clk 0:00:30]} 34. Kg1 {[%clk 0:00:07]}  Qxf3 {[%clk 0:00:28]} 35. Qxh6 {[%clk 0:00:07]}  Qd1+ {[%clk 0:00:19]} 36. Kf2 {[%clk 0:00:07]}  Qc2+ {[%clk 0:00:18]} 37. Ke1 {[%clk 0:00:07]}  Qe4+ {[%clk 0:00:17]} 38. Kd2 {[%clk 0:00:08]}  Qd4+ {[%clk 0:00:15]} 39. Kc2 {[%clk 0:00:04]}  Bf5+ {[%clk 0:00:13]} 40. Kb3 {[%clk 0:00:04]}  Be6+ {[%clk 0:00:12]} 41. Kc2 {[%clk 0:00:04]}  Bf5+ {[%clk 0:00:12]} 42. Kc1 {[%clk 0:00:04]}  Qg1+ {[%clk 0:00:10]} 43. Kd2 {[%clk 0:00:04]}  Qg2+ {[%clk 0:00:10]} 44. Kc3 {[%clk 0:00:04]}  Qxg3+ {[%clk 0:00:10]} 45. Kb4 {[%clk 0:00:05]}  Qb8+ {[%clk 0:00:08]} 46. Kc3 {[%clk 0:00:04]}  Qe5+ {[%clk 0:00:08]} 47. Kc4 {[%clk 0:00:04]}  Be6+ {[%clk 0:00:07]} 48. Kb4 {[%clk 0:00:04]}  Qd4+ {[%clk 0:00:06]} 49. Kb5 {[%clk 0:00:04]}  Qb6+ {[%clk 0:00:06]} 50. Ka4 {[%clk 0:00:04]}  Bd7+ {[%clk 0:00:04]} 51. Qc6 {[%clk 0:00:03]}  Bxc6# {[%clk 0:00:02]} 0-1

[Event "December 5 Late 2023"]
[Site "https://www.chess.com"]
[Date "2023.12.05"]
[Round "6"]
[White "Rose, Felix"]
[Black "Rios Escobar, Adan"]
[Result "0-1"]
[Board "114"]
[TimeControl "180+1"]
[WhiteFideId "5105722"]
[BlackFideId "3403645"]
[WhiteElo "2313"]
[BlackElo "2449"]
[WhiteTeam "MEX"]
[BlackTeam "CHI"]
[WhiteClock "0:00:03"]
[BlackClock "0:00:03"]

1. e4 {[%clk 0:02:59]}  c6 {[%clk 0:02:59]} 2. d4 {[%clk 0:02:59]}  d5 {[%clk 0:03:00]} 3. e5 {[%clk 0:02:59]}  Bf5 {[%clk 0:02:59]} 4. h4 {[%clk 0:03:00]}  h5 {[%clk 0:02:58]} 5. Bd3 {[%clk 0:03:00]}  Bxd3 {[%clk 0:02:55]} 6. Qxd3 {[%clk 0:03:01]}  Qa5+ {[%clk 0:02:53]} 7. Bd2 {[%clk 0:02:54]}  Qa6 {[%clk 0:02:51]} 8. e6 {[%clk 0:02:55]}  Qxd3 {[%clk 0:02:48]} 9. exf7+ {[%clk 0:02:51]}  Kxf7 {[%clk 0:02:49]} 10. cxd3 {[%clk 0:02:52]}  Nd7 {[%clk 0:02:04]} 11. Nf3 {[%clk 0:02:49]}  Nh6 {[%clk 0:01:54]} 12. Bxh6 {[%clk 0:02:32]}  Rxh6 {[%clk 0:01:54]} 13. O-O {[%clk 0:02:31]}  e6 {[%clk 0:01:29]} 14. Re1 {[%clk 0:02:31]}  Be7 {[%clk 0:01:28]} 15. g3 {[%clk 0:02:30]}  Rg8 {[%clk 0:01:27]} 16. Ng5+ {[%clk 0:02:02]}  Bxg5 {[%clk 0:01:22]} 17. hxg5 {[%clk 0:02:03]}  Rhh8 {[%clk 0:01:12]} 18. Nd2 {[%clk 0:01:48]}  h4 {[%clk 0:01:12]} 19. Re3 {[%clk 0:01:31]}  Rh5 {[%clk 0:01:06]} 20. f4 {[%clk 0:01:28]}  hxg3 {[%clk 0:01:03]} 21. Rxg3 {[%clk 0:01:27]}  Rgh8 {[%clk 0:01:04]} 22. Rf1 {[%clk 0:01:17]}  Rh1+ {[%clk 0:00:57]} 23. Kf2 {[%clk 0:01:18]}  R8h2+ {[%clk 0:00:58]} 24. Rg2 {[%clk 0:01:16]}  Kg6 {[%clk 0:00:45]} 25. Rxh1 {[%clk 0:01:05]}  Rxh1 {[%clk 0:00:44]} 26. Kg3 {[%clk 0:01:00]}  Rd1 {[%clk 0:00:37]} 27. Re2 {[%clk 0:00:58]}  Kf7 {[%clk 0:00:24]} 28. a3 {[%clk 0:00:51]}  a5 {[%clk 0:00:24]} 29. b4 {[%clk 0:00:44]}  a4 {[%clk 0:00:23]} 30. Kf3 {[%clk 0:00:41]}  Ra1 {[%clk 0:00:19]} 31. Kg4 {[%clk 0:00:37]}  Rxa3 {[%clk 0:00:18]} 32. Nf3 {[%clk 0:00:22]}  Rxd3 {[%clk 0:00:17]} 33. g6+ {[%clk 0:00:22]}  Kf6 {[%clk 0:00:16]} 34. Ng5 {[%clk 0:00:22]}  Nf8 {[%clk 0:00:12]} 35. Ra2 {[%clk 0:00:16]}  a3 {[%clk 0:00:11]} 36. b5 {[%clk 0:00:15]}  cxb5 {[%clk 0:00:11]} 37. Rc2 {[%clk 0:00:13]}  Rxd4 {[%clk 0:00:07]} 38. Rc7 {[%clk 0:00:13]}  Kxg6 {[%clk 0:00:05]} 39. Rc8 {[%clk 0:00:11]}  a2 {[%clk 0:00:04]} 40. Rxf8 {[%clk 0:00:10]}  a1=Q {[%clk 0:00:04]} 41. Nxe6 {[%clk 0:00:10]}  Qg1+ {[%clk 0:00:02]} 42. Kf3 {[%clk 0:00:08]}  Qf1+ {[%clk 0:00:02]} 43. Kg4 {[%clk 0:00:09]}  Qe2+ {[%clk 0:00:02]} 44. Kh4 {[%clk 0:00:07]}  Qxe6 {[%clk 0:00:03]} 45. Kg3 {[%clk 0:00:03]}  Rd3+ {[%clk 0:00:03]} 46. Kh4 {[%clk 0:00:03]}  Qh3# {[%clk 0:00:03]} 0-1

[Event "December 5 Late 2023"]
[Site "https://www.chess.com"]
[Date "2023.12.05"]
[Round "6"]
[White "Curtis, John"]
[Black "DCacheiro"]
[Result "1/2-1/2"]
[Board "118"]
[TimeControl "180+1"]
[WhiteFideId "3200256"]
[WhiteElo "2220"]
[BlackElo "2427"]
[WhiteTeam "AUS"]
[WhiteClock "0:00:14"]
[BlackClock "0:00:08"]

1. d4 {[%clk 0:03:00]}  Nf6 {[%clk 0:02:59]} 2. Nf3 {[%clk 0:03:00]}  g6 {[%clk 0:02:59]} 3. g3 {[%clk 0:03:01]}  Bg7 {[%clk 0:02:55]} 4. Bg2 {[%clk 0:03:02]}  O-O {[%clk 0:02:56]} 5. O-O {[%clk 0:03:02]}  d6 {[%clk 0:02:57]} 6. c4 {[%clk 0:03:01]}  c5 {[%clk 0:02:57]} 7. Nc3 {[%clk 0:02:57]}  Nc6 {[%clk 0:02:56]} 8. h3 {[%clk 0:02:52]}  cxd4 {[%clk 0:02:55]} 9. Nxd4 {[%clk 0:02:52]}  Nxd4 {[%clk 0:02:56]} 10. Qxd4 {[%clk 0:02:52]}  Be6 {[%clk 0:02:57]} 11. Qd3 {[%clk 0:02:49]}  Qc8 {[%clk 0:02:54]} 12. Nd5 {[%clk 0:02:45]}  Nxd5 {[%clk 0:02:52]} 13. cxd5 {[%clk 0:02:43]}  Bxh3 {[%clk 0:02:53]} 14. Bxh3 {[%clk 0:02:35]}  Qxh3 {[%clk 0:02:54]} 15. Bg5 {[%clk 0:02:35]}  Qd7 {[%clk 0:02:50]} 16. Rab1 {[%clk 0:02:29]}  Rac8 {[%clk 0:02:48]} 17. Be3 {[%clk 0:02:17]}  b6 {[%clk 0:02:42]} 18. Bd4 {[%clk 0:02:13]}  Bxd4 {[%clk 0:02:33]} 19. Qxd4 {[%clk 0:02:13]}  Rc5 {[%clk 0:02:34]} 20. Kg2 {[%clk 0:02:11]}  Rfc8 {[%clk 0:02:32]} 21. b3 {[%clk 0:02:10]}  Qb5 {[%clk 0:02:24]} 22. Rh1 {[%clk 0:02:08]}  Rxd5 {[%clk 0:02:16]} 23. Qh4 {[%clk 0:02:06]}  Rh5 {[%clk 0:02:05]} 24. Qxe7 {[%clk 0:02:06]}  Qc6+ {[%clk 0:01:59]} 25. e4 {[%clk 0:01:45]}  Re8 {[%clk 0:01:58]} 26. Rbc1 {[%clk 0:01:36]}  Qa8 {[%clk 0:01:48]} 27. Qf6 {[%clk 0:01:25]}  Qxe4+ {[%clk 0:01:44]} 28. Qf3 {[%clk 0:01:19]}  Rxh1 {[%clk 0:01:43]} 29. Qxe4 {[%clk 0:01:17]}  Rxe4 {[%clk 0:01:44]} 30. Kxh1 {[%clk 0:01:17]}  Re2 {[%clk 0:01:44]} 31. Kg2 {[%clk 0:01:17]}  Rxa2 {[%clk 0:01:42]} 32. Rc7 {[%clk 0:01:14]}  Ra3 {[%clk 0:01:38]} 33. b4 {[%clk 0:01:13]}  a5 {[%clk 0:01:28]} 34. bxa5 {[%clk 0:01:12]}  bxa5 {[%clk 0:01:29]} 35. Ra7 {[%clk 0:01:06]}  a4 {[%clk 0:01:29]} 36. Ra5 {[%clk 0:01:03]}  Kg7 {[%clk 0:01:28]} 37. Rd5 {[%clk 0:01:03]}  Rc3 {[%clk 0:01:24]} 38. Rxd6 {[%clk 0:01:02]}  a3 {[%clk 0:01:24]} 39. Ra6 {[%clk 0:01:01]}  h5 {[%clk 0:01:23]} 40. f4 {[%clk 0:00:59]}  Kf8 {[%clk 0:01:22]} 41. Ra7 {[%clk 0:00:56]}  Rc2+ {[%clk 0:01:16]} 42. Kh3 {[%clk 0:00:55]}  a2 {[%clk 0:01:17]} 43. g4 {[%clk 0:00:51]}  f6 {[%clk 0:01:04]} 44. gxh5 {[%clk 0:00:47]}  gxh5 {[%clk 0:01:04]} 45. Kh4 {[%clk 0:00:43]}  Ke8 {[%clk 0:00:40]} 46. Kxh5 {[%clk 0:00:43]}  Rg2 {[%clk 0:00:36]} 47. Kh4 {[%clk 0:00:33]}  Kd8 {[%clk 0:00:36]} 48. Kh3 {[%clk 0:00:32]}  Rc2 {[%clk 0:00:27]} 49. Kg4 {[%clk 0:00:32]}  Kc8 {[%clk 0:00:28]} 50. Kf5 {[%clk 0:00:30]}  Kb8 {[%clk 0:00:28]} 51. Ra3 {[%clk 0:00:26]}  Kb7 {[%clk 0:00:26]} 52. Kxf6 {[%clk 0:00:25]}  Rc6+ {[%clk 0:00:19]} 53. Ke7 {[%clk 0:00:23]}  Ra6 {[%clk 0:00:19]} 54. Rxa2 {[%clk 0:00:20]}  Rxa2 {[%clk 0:00:20]} 55. f5 {[%clk 0:00:21]}  Re2+ {[%clk 0:00:20]} 56. Kd7 {[%clk 0:00:18]}  Rf2 {[%clk 0:00:21]} 57. Ke7 {[%clk 0:00:18]}  Kc6 {[%clk 0:00:21]} 58. f6 {[%clk 0:00:17]}  Re2+ {[%clk 0:00:21]} 59. Kd8 {[%clk 0:00:13]}  Rf2 {[%clk 0:00:16]} 60. Ke7 {[%clk 0:00:13]}  Re2+ {[%clk 0:00:13]} 61. Kd8 {[%clk 0:00:14]}  Rf2 {[%clk 0:00:08]} 62. Ke7 {[%clk 0:00:14]} 1/2-1/2

[Event "December 5 Late 2023"]
[Site "https://www.chess.com"]
[Date "2023.12.05"]
[Round "6"]
[White "Play, Gilles"]
[Black "Jing, Andrew"]
[Result "1-0"]
[Board "119"]
[TimeControl "180+1"]
[WhiteFideId "45130892"]
[BlackFideId "30984076"]
[WhiteElo "2421"]
[BlackElo "2216"]
[WhiteTeam "FRA"]
[BlackTeam "USA"]
[WhiteClock "0:00:08"]
[BlackClock "0:00:00"]

1. f4 {[%clk 0:02:59]}  Nf6 {[%clk 0:02:54]} 2. Nf3 {[%clk 0:02:57]}  g6 {[%clk 0:02:52]} 3. e3 {[%clk 0:02:56]}  Bg7 {[%clk 0:02:51]} 4. d4 {[%clk 0:02:56]}  d5 {[%clk 0:02:51]} 5. Bd3 {[%clk 0:02:56]}  O-O {[%clk 0:02:51]} 6. Ne5 {[%clk 0:02:54]}  c5 {[%clk 0:02:49]} 7. c3 {[%clk 0:02:54]}  Nc6 {[%clk 0:02:43]} 8. Nd2 {[%clk 0:02:53]}  Nd7 {[%clk 0:02:38]} 9. h4 {[%clk 0:02:47]}  f6 {[%clk 0:02:37]} 10. Nxc6 {[%clk 0:02:36]}  bxc6 {[%clk 0:02:36]} 11. h5 {[%clk 0:02:37]}  f5 {[%clk 0:02:37]} 12. g4 {[%clk 0:02:30]}  Nf6 {[%clk 0:02:32]} 13. hxg6 {[%clk 0:02:10]}  hxg6 {[%clk 0:02:29]} 14. g5 {[%clk 0:02:08]}  Ne4 {[%clk 0:02:28]} 15. Nf3 {[%clk 0:01:53]}  c4 {[%clk 0:02:27]} 16. Bc2 {[%clk 0:01:48]}  Kf7 {[%clk 0:02:24]} 17. Rh7 {[%clk 0:01:45]}  Rh8 {[%clk 0:02:24]} 18. Ne5+ {[%clk 0:01:44]}  Ke6 {[%clk 0:02:22]} 19. Rxg7 {[%clk 0:01:25]}  Rh1+ {[%clk 0:02:09]} 20. Ke2 {[%clk 0:01:24]}  Rxd1 {[%clk 0:02:08]} 21. Rxg6+ {[%clk 0:01:23]}  Nf6 {[%clk 0:02:08]} 22. Kxd1 {[%clk 0:01:17]}  Qh8 {[%clk 0:01:59]} 23. Bd2 {[%clk 0:01:10]}  Qh1+ {[%clk 0:01:58]} 24. Be1 {[%clk 0:01:09]}  Bb7 {[%clk 0:01:46]} 25. Rh6 {[%clk 0:01:08]}  Qg2 {[%clk 0:01:43]} 26. gxf6 {[%clk 0:01:00]}  exf6 {[%clk 0:01:42]} 27. Bh4 {[%clk 0:00:59]}  Qf1+ {[%clk 0:01:36]} 28. Kd2 {[%clk 0:00:58]}  Qxa1 {[%clk 0:01:36]} 29. Rxf6+ {[%clk 0:00:54]}  Ke7 {[%clk 0:01:36]} 30. Rxc6+ {[%clk 0:00:44]}  Ke8 {[%clk 0:01:34]} 31. Re6+ {[%clk 0:00:42]}  Kf8 {[%clk 0:01:32]} 32. Rf6+ {[%clk 0:00:35]}  Ke8 {[%clk 0:01:18]} 33. Ba4+ {[%clk 0:00:34]}  Ke7 {[%clk 0:01:14]} 34. Rf7+ {[%clk 0:00:32]}  Kd6 {[%clk 0:01:11]} 35. Be7+ {[%clk 0:00:30]}  Kc7 {[%clk 0:01:03]} 36. Bb4+ {[%clk 0:00:17]}  Kb6 {[%clk 0:00:38]} 37. Nd7+ {[%clk 0:00:14]}  Kc7 {[%clk 0:00:37]} 38. Nc5+ {[%clk 0:00:14]}  Kc8 {[%clk 0:00:29]} 39. Rf8+ {[%clk 0:00:11]}  Kc7 {[%clk 0:00:29]} 40. Ba5+ {[%clk 0:00:10]}  Kd6 {[%clk 0:00:24]} 41. Nxb7+ {[%clk 0:00:09]}  Ke6 {[%clk 0:00:20]} 42. Rxa8 {[%clk 0:00:07]}  Qxb2+ {[%clk 0:00:19]} 43. Bc2 {[%clk 0:00:05]}  Qxb7 {[%clk 0:00:19]} 44. Rf8 {[%clk 0:00:04]}  Ke7 {[%clk 0:00:19]} 45. Rxf5 {[%clk 0:00:04]}  Qb5 {[%clk 0:00:18]} 46. Bb4+ {[%clk 0:00:05]}  Ke6 {[%clk 0:00:17]} 47. Re5+ {[%clk 0:00:06]}  Kf6 {[%clk 0:00:17]} 48. f5 {[%clk 0:00:07]}  a5 {[%clk 0:00:17]} 49. Re6+ {[%clk 0:00:07]}  Kg5 {[%clk 0:00:17]} 50. Bc5 {[%clk 0:00:08]}  a4 {[%clk 0:00:17]} 51. Rg6+ {[%clk 0:00:09]}  Kh5 {[%clk 0:00:17]} 52. f6 {[%clk 0:00:09]}  Qb2 {[%clk 0:00:12]} 53. f7 {[%clk 0:00:09]}  Qb8 {[%clk 0:00:08]} 54. Rg8 {[%clk 0:00:09]}  Qb2 {[%clk 0:00:07]} 55. f8=Q {[%clk 0:00:08]}  Qxa2 {[%clk 0:00:00]} 56. Qf5+ {[%clk 0:00:08]} 1-0